Workbook

Sheet NOTES
A1: D1100291, aLIGO LHO Monuments
A2: 1) The intent is that this document (to include an Excel spreadsheet of coordinates AND a drawing) cover all monuments for use in aLIGO Initial Alignment at LHO.
A3: 2) Note that the Test Stand (TS1 and TS2) monuments have their own local coordinate systems, which are in general rotated (slightly) from the global coordinate frame.
A4: THESE TS MONUMENTS SHOULD EACH BE ONLY USED AS A SET AND NOT IN COMBINATION WITH THE OTHER MONUMENTS!
A6: Sources:
A7: D970210-v1 | B7: Initial LIGO monuments BTVE, IAM and PSI. Updated/re-surveyed list/drawing, but not a complete set for all of iLIGO
A8: D970210-v2 | B8: update to drawing for aLIGO, including LV monuments (to be developed/posted)
A9: LVEA 15Nov2011 | B9: LV1 thru LV16. Jason Oberling & Doug Cook, 15 Nov 2011 (prepared earlier in the year)
A10: D1100291-v1 | B10: Dennis Coyne added monument LV17 for aLIGO H2 ITMy alignment
A11: D1100291-v2 | B11: Doug Cook added monument LV18 for aLIGO H1 ITMy alignment

Sheet All LHO LVEA Monuments List
A1: designation | B1: X | C1: Y | D1: Z | E1: building
A2: BTVE-1 | B2: 0 | C2: 46000 | D2: -1061.2
A3: BTVE-5 | B3: 46000 | C3: 0 | D3: -1061.2
A4: IAM-1 | B4: 2362.3 | C4: -3251.2
A5: IAM-2 | B5: 11543 | C5: -3251.2
A6: IAM-3 | B6: 213360 | C6: -3251.2
A7: IAM-4 | B7: 2362.3 | C7: 212.9
A8: IAM-5 | B8: 11543.1 | C8: -200
A9: IAM-6 | B9: -3251.2 | C9: 2362.2
A10: IAM-7 | B10: -200 | C10: 2362.2
A11: IAM-8 | B11: 11543 | C11: 9060
A12: IAM-9 | B12: -3251.2 | C12: 11428
A13: IAM-10 | B13: 200 | C13: 11428
A14: IAM-11 | B14: 9163.1 | C14: 11428
A15: IAM-12 | B15: -3251.2 | C15: 213360
A16: PSI-1 | B16: 2362.3 | C16: 44643.1 | D16: -1854.2
A17: PSI-2 | B17: 9219.6 | C17: 31601.7 | D17: -1855.5
A18: PSI-3 | B18: -2362.2 | C18: 9219.6 | D18: -1849.6
A19: PSI-4 | B19: -22382.7 | C19: 2362.2 | D19: -1855.2
A20: PSI-5 | B20: -22382.7 | C20: 0 | D20: -1852.2
A21: PSI-6 | B21: 2362.2 | C21: 2362.2 | D21: -1850.4
A22: PSI-7 | B22: 0 | C22: -22382.7 | D22: -1858
A23: PSI-8 | B23: 2362.1 | C23: -22382.7 | D23: -1855.5
A24: PSI-9 | B24: 2362.2 | C24: -2362.2 | D24: -1858
A25: PSI-10 | B25: 9219.6 | C25: -2362.2 | D25: -1856.5
A26: PSI-11 | B26: 31601.1 | C26: 9219.6 | D26: -1855.7
A27: PSI-12 | B27: 44642.6 | C27: 2362.2 | D27: -1853.4
A28: LV1 | B28: -2132.9 | C28: 11428
A29: LV2 | B29: -2133.6 | C29: 2362.2
A30: LV3 | B30: -2131.6 | C30: 38158.1
A31: LV4
A32: LV5 | B32: -2133.6 | C32: -1930.7
A33: LV6 | B33: 11543 | C33: -1930.7
A34: LV7 | B34: 38155 | C34: -1930.7
A35: LV8
A36: LV9 | B36: 11543 | C36: 11428
A37: LV10 | B37: 27340.1 | C37: 11428
A38: LV11 | B38: 11543 | C38: 27306.3
A39: LV12 | B39: -2132.2 | C39: 25171.9
A40: LV13 | B40: -2131.9 | C40: 31415.1
A41: LV14 | B41: 1375.2 | C41: -1930.7
A42: LV15 | B42: 31426.7 | C42: -1930.7
A43: LV16 | B43: 33967.1 | C43: -1930.7
A44: LV17 | B44: 200 | C44: 38158.1
A45: LV18 | B45: 0 | C45: =C44 -> 38158.1
A46: LV19 | B46: -200 | C46: =C45 -> 38158.1
A47: LV20 | B47: -2133.6 | C47: -3830.7
A48: LV21 | B48: -2133.6 | C48: -20122
A49: LV22 | B49: -2133.6 | C49: -22692
A50: LV23 | B50: -3831 | C50: -3050.7
A51: LV24 | B51: -20122 | C51: -3050.7
A52: LV25 | B52: -22692 | C52: -3050.7
A53: LV26 | B53: -2133.6 | C53: -3050.7
A54: LV27 | B54: -2133.6 | C54: -26000 | F54: LV27-LV31 are for SRC alignment;
A55: LV28 | B55: -85.7 | C55: -26000 | F55: coordinates are pending verfication
A56: LV29 | B56: 655.6 | C56: -26000
A57: LV30 | B57: 327.3 | C57: -26000
A58: LV31 | B58: 610.4 | C58: -26000
A59: LV32 | B59: 38155 | C59: -200

Sheet TS1
A1: TEST STAND #1
B2: Local | F2: RELATIVE TO TS#2
A3: designation | B3: X (mm) | C3: Y (mm) | D3: Source | E3: comments | F3: X (mm) | G3: Y (mm)
A4: TS1-1 | B4: -200 | C4: 5133 | D4: D1101596-V2 | E4: Test Stand 1 (TS1) | F4: =B4+18*12*25.4 -> 5286.4 | G4: =C4+16*12*25.4 -> 10009.8
A5: TS1-2 | B5: 0 | C5: 5133 | D5: D1101596-V2 | E5: Test Stand 1 (TS1) | F5: =B5+18*12*25.4 -> 5486.4 | G5: =C5+16*12*25.4 -> 10009.8
A6: TS1-3 | B6: 200 | C6: 5133 | D6: D1101596-V2 | E6: Test Stand 1 (TS1) | F6: 5686.4 | G6: 10009.8
A7: TS1-4 | B7: -200 | C7: -7570 | D7: D1101596-V2 | E7: Test Stand 1 (TS1) | F7: 5286.4 | G7: -2693.2
A8: TS1-5 | B8: 0 | C8: -7570 | D8: D1101596-V2 | E8: Test Stand 1 (TS1) | F8: 5486.4 | G8: -2693.2
A9: TS1-6 | B9: 200 | C9: -7570 | D9: D1101596-V2 | E9: Test Stand 1 (TS1) | F9: 5686.4 | G9: -2693.2
A10: TS1-10 | B10: 0 | C10: 0 | D10: D1101596-V2 | E10: Test Stand 1 (TS1) | F10: 5486.4 | G10: 4876.8
A11: TS1-11 | B11: -7289 | C11: 200 | D11: D1101596-V2 | E11: Test Stand 1 (TS1) | F11: -1802.6 | G11: 5076.8
A12: TS1-12 | B12: -7289 | C12: 0 | D12: D1101596-V2 | E12: Test Stand 1 (TS1) | F12: -1802.6 | G12: 4876.8
A13: TS1-13 | B13: -7289 | C13: -200 | D13: D1101596-V2 | E13: Test Stand 1 (TS1) | F13: -1802.6 | G13: 4676.8
A14: TS1-15 | B14: 2872 | C14: 200 | D14: D1101596-V2 | E14: Test Stand 1 (TS1) | F14: 8358.4 | G14: 5076.8
A15: TS1-16 | B15: 2872 | C15: 0 | D15: D1101596-V2 | E15: Test Stand 1 (TS1) | F15: 8358.4 | G15: 4876.8
A16: TS1-17 | B16: 2872 | C16: -200 | D16: D1101596-V2 | E16: Test Stand 1 (TS1) | F16: 8358.4 | G16: 4676.8
A26: BS HR
A27: BS AR

Sheet TS2
A1: TEST STAND #2
B2: Local | F2: RELATIVE TO TS1
A3: designation | B3: X (mm) | C3: Y (mm) | D3: Source | E3: comments | F3: X (mm) | G3: Y (mm)
A4: TS2-1 | B4: -200 | C4: 5133 | D4: D1101596-V2 | E4: Test Stand 2 (TS2) | F4: =B4-18*12*25.4 -> -5686.4 | G4: =C4-16*12*25.4 -> 256.2
A5: TS2-2 | B5: 0 | C5: 5133 | D5: D1101596-V2 | E5: Test Stand 2 (TS2) | F5: =B5-18*12*25.4 -> -5486.4 | G5: =C5-16*12*25.4 -> 256.2
A6: TS2-3 | B6: 200 | C6: 5133 | D6: D1101596-V2 | E6: Test Stand 2 (TS2) | F6: -5286.4 | G6: 256.2
A7: TS2-4 | B7: -200 | C7: -7570 | D7: D1101596-V2 | E7: Test Stand 2 (TS2) | F7: -5686.4 | G7: -12446.8
A8: TS2-5 | B8: 0 | C8: -7570 | D8: D1101596-V2 | E8: Test Stand 2 (TS2) | F8: -5486.4 | G8: -12446.8
A9: TS2-6 | B9: 200 | C9: -7570 | D9: D1101596-V2 | E9: Test Stand 2 (TS2) | F9: -5286.4 | G9: -12446.8
A10: TS2-7 | B10: -200 | C10: 2800 | D10: D1101596-V2 | E10: Test Stand 2 (TS2) | F10: -5686.4 | G10: -2076.8
A11: TS2-8 | B11: 3327.3 | C11: 2800 | D11: D1101596-V2 | E11: Test Stand 2 (TS2) | F11: -2159.1 | G11: -2076.8
A12: TS2-9 | B12: 3327.3 | C12: -326.1 | D12: D1101596-V2 | E12: Test Stand 2 (TS2) | F12: -2159.1 | G12: -5202.9
A13: TS2-10 | B13: 0 | C13: 0 | D13: D1101596-V2 | E13: Test Stand 2 (TS2) | F13: -5486.4 | G13: -4876.8
A14: TS2-11 | B14: -2872 | C14: 200 | D14: D1101596-V2 | E14: Test Stand 2 (TS2) | F14: -8358.4 | G14: -4676.8
A15: TS2-12 | B15: -2872 | C15: 0 | D15: D1101596-V2 | E15: Test Stand 2 (TS2) | F15: -8358.4 | G15: -4876.8
A16: TS2-13 | B16: -2872 | C16: -200 | D16: D1101596-V2 | E16: Test Stand 2 (TS2) | F16: -8358.4 | G16: -5076.8
A17: TS2-14 | B17: 200 | C17: 7570 | D17: D1101596-V2 | E17: Test Stand 2 (TS2) | F17: -5286.4 | G17: 2693.2
A18: TS2-15 | B18: 7285 | C18: 200 | D18: D1101596-V2 | E18: Test Stand 2 (TS2) | F18: 1798.6 | G18: -4676.8
A19: TS2-16 | B19: 7285 | C19: 0 | D19: D1101596-V2 | E19: Test Stand 2 (TS2) | F19: 1798.6 | G19: -4876.8
A20: TS2-17 | B20: 7285 | C20: -200 | D20: D1101596-V2 | E20: Test Stand 2 (TS2) | F20: 1798.6 | G20: -5076.8
A21: TS2-18 | B21: -2872 | C21: -2475.73 | E21: Test Stand 2 (TS2) | F21: =B21-18*12*25.4 -> -8358.4 | G21: =C21-16*12*25.4 -> -7352.53
A22: TS2-19 | B22: 0 | C22: 6540.7 | E22: Test Stand 2 (TS2) | F22: -5486.4 | G22: 1663.9
A23: TS2-20 | B23: 5594.48 | C23: 6540.7 | E23: Test Stand 2 (TS2) | F23: 108.08 | G23: 1663.9
A24: TS2-21 | B24: 5594.48 | C24: 5388.63 | E24: Test Stand 2 (TS2) | F24: 108.08 | G24: 511.83
A25: TS2-22 | B25: 0 | C25: 5388.63 | E25: Test Stand 2 (TS2) | F25: -5486.4 | G25: 511.83
A26: TS2-23 | B26: -183.94 | C26: 7570 | E26: Test Stand 2 (TS2) | F26: -5670.34 | G26: 2693.2
A27: TS2-24 | B27: -183.94 | C27: 0 | E27: Test Stand 2 (TS2) | F27: -5670.34 | G27: -4876.8
A28: TS2-25 | B28: =B21 -> -2872 | C28: 10000 | E28: Test Stand 2 (TS2) | F28: -8358.4 | G28: 5123.2
B30: TS#2 cartridge | F30: Global
B31: X (mm) | C31: Y (mm) | D31: Source | E31: comments | F31: X (mm) | G31: Y (mm)
A32: BS HR | B32: =G32 -> -183.9 | C32: =-F32 -> 202.6 | D32: D0901920-v11 | E32: center BS HR face | F32: -202.6 | G32: -183.9
A33: BS AR | B33: =G33 -> -202.6 | C33: =-F33 -> 136.6 | D33: D0901920-v11 | E33: chief X ray intersection with BS AR face | F33: -136.6 | G33: -202.6
A34: BS ARS | B34: -249.8 | C34: 184 | D34: D0901920-v11 | E34: chief Y ray intersection with BS AR face | F34: -184 | G34: -249.8

Sheet All LHO End-Y Monuments List
A1: designation | B1: X | C1: Y | D1: Z | E1: building
A2: BTVE-4 | B2: 0 | C2: 3988503.6 | D2: -1056.9
A3: IAM-22 | B3: 3048 | C3: 3776167.2
A4: IAM-23 | B4: 3046.9 | C4: 4002371.75
A5: IAM-24 | B5: 200 | C5: 4002371.75
A6: IAM-25 | B6: 3047 | C6: 4008682.6
A7: IAM-26 | B7: 0 | C7: 4008682.6
A8: IAM-27 | B8: -200 | C8: 4008682.6
A9: IAM-28 | B9: 3046 | C9: 3988503.6
A10: IAM-29 | B10: 3046.6 | C10: 3999993.6
A11: IAM-EY-B1 | B11: 3046.3 | C11: 3993825.6
A12: IAM-EY-T1 | B12: -199.4 | C12: 3993825.6

Sheet All LHO End-X Monuments List
A1: designation | B1: X | C1: Y | D1: Z | E1: building
A2: BTVE-8 | B2: 3988497 | C2: 0 | D2: -1056.9
A3: IAM-16 | B3: 314680.6 | C3: 3048
A4: IAM-17 | B4: 4002336.75 | C4: 3048
A5: IAM-18 | B5: 4002336.75 | C5: 200
A6: IAM-EX-B1 | B6: 3993719.5 | C6: 3048
A7: IAM-EX-T1 | B7: 3993719.5 | C7: 199.5
A8: IAM-EX-T2 | B8: 3993719.5 | C8: -200
A9: IAM-EX-T3 | B9: 4008784 | C9: 3048
A10: IAM-EX-T4 | B10: 4008784
A11: IAM-EX-T5 | B11: 3988497 | C11: 3048

Sheet LHO D970210-v2
A1: designation | B1: X | C1: Y | D1: Z | E1: building
A2: BTVE-1 | B2: 0 | C2: 46000 | D2: -1061.2
A3: BTVE-4 | B3: 0 | C3: 3988503.6 | D3: -1056.9
A4: BTVE-5 | B4: 46000 | C4: 0 | D4: -1061.2
A5: IAM-1 | B5: 2362.3 | C5: 3251.2
A6: IAM-2 | B6: 11543 | C6: 3251.2
A7: IAM-3 | B7: 213360 | C7: 3251.2
A8: IAM-4 | B8: 2362.3 | C8: 212.9
A9: IAM-5 | B9: 11543.1 | C9: -200
A10: IAM-6 | B10: 3251.2 | C10: 2362.2
A11: IAM-7 | B11: -200 | C11: 2362.2
A12: IAM-8 | B12: 11543 | C12: 9060
A13: IAM-9 | B13: 3251.2 | C13: 11428
A14: IAM-10 | B14: 200 | C14: 11428
A15: IAM-11 | B15: 9163.1 | C15: 11428
A16: IAM-12 | B16: 3251.2 | C16: 213360
A17: PSI-1 | B17: 2362.3 | C17: 44643.1 | D17: -1854.2
A18: PSI-2 | B18: 9219.6 | C18: 31601.7 | D18: -1855.5
A19: PSI-3 | B19: -2362.2 | C19: 9219.6 | D19: -1849.6
A20: PSI-4 | B20: -22382.7 | C20: 2362.2 | D20: -1855.2
A21: PSI-5 | B21: -22382.7 | C21: 0 | D21: -1852.2
A22: PSI-6 | B22: 2362.2 | C22: 2362.2 | D22: -1850.4
A23: PSI-7 | B23: 0 | C23: -22382.7 | D23: -1858
A24: PSI-8 | B24: 2362.1 | C24: -22382.7 | D24: -1855.5
A25: PSI-9 | B25: 2362.2 | C25: -2362.2 | D25: -1858
A26: PSI-10 | B26: 9219.6 | C26: -2362.2 | D26: -1856.5
A27: PSI-11 | B27: 31601.1 | C27: 9219.6 | D27: -1855.7
A28: PSI-12 | B28: 44642.6 | C28: 2362.2 | D28: -1853.4

Sheet LVEA interior wall
A1: LHO LVEA interior wall perimeter
A2: for LVEA interior dimensions and wall thickness see
A3: WA-A-501, Rev 1 D960273-01-O Corner Station, LVEA Floor Plan
A4: WA-A-502, Rev 1 D960274-01-O Corner Station, LVEA Partial Floor Plan, Sheet 1
B6: Relative to the Beam Tube Centerlines | F6: Relative to TS1 center
B7: I-beam Centerline | D7: Face Of Wall (FOW) | F7: Face Of Wall (FOW)
A8: point | B8: X (ft) | C8: Y (ft) | D8: X (mm) | E8: Y (mm) | F8: X (mm) | G8: Y (mm)
A9: A | B9: -15 | C9: -115 | D9: =(B9*12+15*SIGN(B9))*25.4 -> -4953 | E9: =(C9*12+15*SIGN(C9))*25.4 -> -35433 | F9: =D9-[1]TS1!$B$13 -> -11679.5 | G9: =E9-[1]TS1!$C$13 -> -42601.4
A10: B | B10: -15 | C10: -15 | D10: =(B10*12+15*SIGN(B10))*25.4 -> -4953 | E10: -4953 | F10: =D10-[1]TS1!$B$13 -> -11679.5 | G10: =E10-[1]TS1!$C$13 -> -12121.4
A11: C | B11: -135 | C11: -15 | D11: -41529 | E11: -4953 | F11: =D11-[1]TS1!$B$13 -> -48255.5 | G11: =E11-[1]TS1!$C$13 -> -12121.4
A12: D | B12: -135 | C12: 25 | D12: -41529 | E12: 8001 | F12: =D12-[1]TS1!$B$13 -> -48255.5 | G12: =E12-[1]TS1!$C$13 -> 832.6
A13: E | B13: -15 | C13: 25 | D13: -4953 | E13: 8001 | F13: =D13-[1]TS1!$B$13 -> -11679.5 | G13: =E13-[1]TS1!$C$13 -> 832.6
A14: F | B14: -15 | C14: 165 | D14: -4953 | E14: 50673 | F14: =D14-[1]TS1!$B$13 -> -11679.5 | G14: =E14-[1]TS1!$C$13 -> 43504.6
A15: G | B15: 65 | C15: 165 | D15: 20193 | E15: 50673 | F15: =D15-[1]TS1!$B$13 -> 13466.5 | G15: =E15-[1]TS1!$C$13 -> 43504.6
A16: H | B16: 65 | C16: 65 | D16: 20193 | E16: 20193 | F16: =D16-[1]TS1!$B$13 -> 13466.5 | G16: =E16-[1]TS1!$C$13 -> 13024.6
A17: I | B17: 165 | C17: 65 | D17: 50673 | E17: 20193 | F17: =D17-[1]TS1!$B$13 -> 43946.5 | G17: =E17-[1]TS1!$C$13 -> 13024.6
A18: J | B18: 165 | C18: -15 | D18: 50673 | E18: -4953 | F18: =D18-[1]TS1!$B$13 -> 43946.5 | G18: =E18-[1]TS1!$C$13 -> -12121.4
A19: K | B19: 65 | C19: -15 | D19: 20193 | E19: -4953 | F19: =D19-[1]TS1!$B$13 -> 13466.5 | G19: =E19-[1]TS1!$C$13 -> -12121.4
A20: L | B20: 65 | C20: -35 | D20: 20193 | E20: -11049 | F20: =D20-[1]TS1!$B$13 -> 13466.5 | G20: =E20-[1]TS1!$C$13 -> -18217.4
A21: M | B21: 25 | C21: -35 | D21: 8001 | E21: -11049 | F21: =D21-[1]TS1!$B$13 -> 1274.5 | G21: =E21-[1]TS1!$C$13 -> -18217.4
A22: N | B22: 25 | C22: -115 | D22: 8001 | E22: -35433 | F22: =D22-[1]TS1!$B$13 -> 1274.5 | G22: =E22-[1]TS1!$C$13 -> -42601.4
A23: A | B23: =B9 -> -15 | C23: =C9 -> -115 | D23: =D9 -> -4953 | E23: =E9 -> -35433 | F23: =D23-[1]TS1!$B$13 -> -11679.5 | G23: =E23-[1]TS1!$C$13 -> -42601.4
A26: Beam Tube Centerlines = Global Axes
A28: point | B28: X (mm) | C28: Y (mm)
A29: A | B29: =D11 -> -41529 | C29: 0 | D29: x-axis
A30: B | B30: =D17 -> 50673 | C30: 0 | D30: x-axis
A31: A | B31: 0 | C31: =E9 -> -35433 | D31: y-axis
A32: B | B32: 0 | C32: =E14 -> 50673 | D32: y-axis
A33: The LVEA Wall relative to TS# per D1100408-v1:
B34: TS#1 | D34: TS#2
A35: PT | B35: X | C35: Y | D35: X | E35: Y
A36: E | B36: =B37 -> -16306.8 | C36: =C37-140*12*25.4 -> -35966.4 | D36: =D37 -> -10820.4 | E36: =E37-140*12*25.4 -> -31089.6
A37: F | B37: =B38-80*12*25.4 -> -16306.8 | C37: =C38 -> 6705.6 | D37: =D38-80*12*25.4 -> -10820.4 | E37: =E38 -> 11582.4
A38: G | B38: =(8+18.5)*12*25.4 -> 8077.2 | C38: =(8+14)*12*25.4 -> 6705.6 | D38: =(8+2+16+18.5)*12*25.4 -> 13563.6 | E38: =(8+16+14)*12*25.4 -> 11582.4
A39: H | B39: =B38 -> 8077.2 | C39: =C38-100*12*25.4 -> -23774.4 | D39: =D38 -> 13563.6 | E39: =E38-100*12*25.4 -> -18897.6

Sheet TS structure
A1: depiction of the planform of the test stand (around TS origin)
E2: (TS2 from TS1 origin) | G2: (TS1 from TS2 origin)
A3: point | B3: X | C3: Y | E3: X | F3: Y | G3: X | H3: Y
A4: A | B4: =-2082.8/2 -> -1041.4 | C4: =2641.6/2 -> 1320.8 | D4: pad1 | E4: =B4-18*12*25.5 -> -6549.4 | F4: =C4-16*12*25.4 -> -3556 | G4: =B4+18*12*25.4 -> 4445 | H4: =C4+16*12*25.4 -> 6197.6
A5: B | B5: =B4+495.3 -> -546.1 | C5: =C4 -> 1320.8 | E5: =B5-18*12*25.5 -> -6054.1 | F5: =C5-16*12*25.4 -> -3556 | G5: =B5+18*12*25.4 -> 4940.3 | H5: =C5+16*12*25.4 -> 6197.6
A6: C | B6: =B5 -> -546.1 | C6: =C5-495.3 -> 825.5 | E6: -6054.1 | F6: -4051.3 | G6: 4940.3 | H6: 5702.3
A7: D | B7: =B4 -> -1041.4 | C7: =C6 -> 825.5 | E7: -6549.4 | F7: -4051.3 | G7: 4445 | H7: 5702.3
A8: A | B8: =B4 -> -1041.4 | C8: =C4 -> 1320.8 | E8: -6549.4 | F8: -3556 | G8: 4445 | H8: 6197.6
A9: A | B9: =B4+2082.8-495.3 -> 546.1 | C9: =C4 -> 1320.8 | D9: pad2 | E9: -4961.9 | F9: -3556 | G9: 6032.5 | H9: 6197.6
A10: B | B10: =B5+2082.8-495.3 -> 1041.4 | C10: =C5 -> 1320.8 | E10: -4466.6 | F10: -3556 | G10: 6527.8 | H10: 6197.6
A11: C | B11: =B6+2082.8-495.3 -> 1041.4 | C11: =C6 -> 825.5 | E11: -4466.6 | F11: -4051.3 | G11: 6527.8 | H11: 5702.3
A12: D | B12: =B7+2082.8-495.3 -> 546.1 | C12: =C7 -> 825.5 | E12: -4961.9 | F12: -4051.3 | G12: 6032.5 | H12: 5702.3
A13: A | B13: =B8+2082.8-495.3 -> 546.1 | C13: =C8 -> 1320.8 | E13: -4961.9 | F13: -3556 | G13: 6032.5 | H13: 6197.6
A14: A | B14: =B9 -> 546.1 | C14: =C4-2641.6+495.3 -> -825.5 | D14: pad3 | E14: -4961.9 | F14: -5702.3 | G14: 6032.5 | H14: 4051.3
A15: B | B15: =B10 -> 1041.4 | C15: =C5-2641.6+495.3 -> -825.5 | E15: -4466.6 | F15: -5702.3 | G15: 6527.8 | H15: 4051.3
A16: C | B16: =B11 -> 1041.4 | C16: =C6-2641.6+495.3 -> -1320.8 | E16: -4466.6 | F16: -6197.6 | G16: 6527.8 | H16: 3556
A17: D | B17: =B12 -> 546.1 | C17: =C7-2641.6+495.3 -> -1320.8 | E17: -4961.9 | F17: -6197.6 | G17: 6032.5 | H17: 3556
A18: A | B18: =B13 -> 546.1 | C18: =C8-2641.6+495.3 -> -825.5 | E18: -4961.9 | F18: -5702.3 | G18: 6032.5 | H18: 4051.3
A19: A | B19: =B4 -> -1041.4 | C19: =C14 -> -825.5 | D19: pad 4 | E19: -6549.4 | F19: -5702.3 | G19: 4445 | H19: 4051.3
A20: B | B20: =B5 -> -546.1 | C20: =C15 -> -825.5 | E20: -6054.1 | F20: -5702.3 | G20: 4940.3 | H20: 4051.3
A21: C | B21: =B6 -> -546.1 | C21: =C16 -> -1320.8 | E21: -6054.1 | F21: -6197.6 | G21: 4940.3 | H21: 3556
A22: D | B22: =B7 -> -1041.4 | C22: =C17 -> -1320.8 | E22: -6549.4 | F22: -6197.6 | G22: 4445 | H22: 3556
A23: A | B23: =B8 -> -1041.4 | C23: =C18 -> -825.5 | E23: -6549.4 | F23: -5702.3 | G23: 4445 | H23: 4051.3
A24: A | B24: =-1981.2/2 -> -990.6 | C24: =2438.4/2 -> 1219.2 | D24: left support tube | E24: -6498.6 | F24: -3657.6 | G24: 4495.8 | H24: 6096
A25: B | B25: =B24+304.8 -> -685.8 | C25: =C24 -> 1219.2 | E25: -6193.8 | F25: -3657.6 | G25: 4800.6 | H25: 6096
A26: C | B26: =B25 -> -685.8 | C26: =-2438.4/2 -> -1219.2 | E26: -6193.8 | F26: -6096 | G26: 4800.6 | H26: 3657.6
A27: D | B27: =B24 -> -990.6 | C27: =C26 -> -1219.2 | E27: -6498.6 | F27: -6096 | G27: 4495.8 | H27: 3657.6
A28: A | B28: =B24 -> -990.6 | C28: =C24 -> 1219.2 | E28: -6498.6 | F28: -3657.6 | G28: 4495.8 | H28: 6096
A29: A | B29: =B24+1981.2-304.8 -> 685.8 | C29: =C24 -> 1219.2 | D29: right support tube | E29: -4822.2 | F29: -3657.6 | G29: 6172.2 | H29: 6096
A30: B | B30: =B25+1981.2-304.8 -> 990.6 | C30: =C25 -> 1219.2 | E30: -4517.4 | F30: -3657.6 | G30: 6477 | H30: 6096
A31: C | B31: =B26+1981.2-304.8 -> 990.6 | C31: =C26 -> -1219.2 | E31: -4517.4 | F31: -6096 | G31: 6477 | H31: 3657.6
A32: D | B32: =B27+1981.2-304.8 -> 685.8 | C32: =C27 -> -1219.2 | E32: -4822.2 | F32: -6096 | G32: 6172.2 | H32: 3657.6
A33: A | B33: =B28+1981.2-304.8 -> 685.8 | C33: =C28 -> 1219.2 | E33: -4822.2 | F33: -3657.6 | G33: 6172.2 | H33: 6096
A34: A | B34: =B25 -> -685.8 | C34: =C25 -> 1219.2 | D34: crossbeam 1 | E34: -6193.8 | F34: -3657.6 | G34: 4800.6 | H34: 6096
A35: B | B35: =B29 -> 685.8 | C35: =C29 -> 1219.2 | E35: -4822.2 | F35: -3657.6 | G35: 6172.2 | H35: 6096
A36: C | B36: =B35 -> 685.8 | C36: =C35-304.8 -> 914.4 | E36: -4822.2 | F36: -3962.4 | G36: 6172.2 | H36: 5791.2
A37: D | B37: =B34 -> -685.8 | C37: =C36 -> 914.4 | E37: -6193.8 | F37: -3962.4 | G37: 4800.6 | H37: 5791.2
A38: A | B38: =B34 -> -685.8 | C38: =C34 -> 1219.2 | E38: -6193.8 | F38: -3657.6 | G38: 4800.6 | H38: 6096
A39: A | B39: =B34 -> -685.8 | C39: =C34-2438.4+304.8 -> -914.4 | D39: crossbeam 2 | E39: -6193.8 | F39: -5791.2 | G39: 4800.6 | H39: 3962.4
A40: B | B40: =B35 -> 685.8 | C40: =C35-2438.4+304.8 -> -914.4 | E40: -4822.2 | F40: -5791.2 | G40: 6172.2 | H40: 3962.4
A41: C | B41: =B36 -> 685.8 | C41: =C36-2438.4+304.8 -> -1219.2 | E41: -4822.2 | F41: -6096 | G41: 6172.2 | H41: 3657.6
A42: D | B42: =B37 -> -685.8 | C42: =C37-2438.4+304.8 -> -1219.2 | E42: -6193.8 | F42: -6096 | G42: 4800.6 | H42: 3657.6
A43: A | B43: =B38 -> -685.8 | C43: =C38-2438.4+304.8 -> -914.4 | E43: -6193.8 | F43: -5791.2 | G43: 4800.6 | H43: 3962.4
